{"text_format":"1","workbook":"xlsx","n_sheets":4,"sheets":["Sheet1","計算","Sheet2","Sheet3"],"not_rendered":{"charts":0,"images":0,"macros":1,"external_links":0,"defined_names":0,"comments":0,"pivot_tables":0},"unopened":[],"bounds":{"document_bytes":16777216,"sheet_cells":100000,"rows_first":2000,"rows_last":500,"rows_between":2000,"halvings":0,"cell_chars":16384,"cell_head_chars":4096},"cells_cut":0,"cells_raw":0,"read":"whole","date_system":"1900"}

{"sheet":"Sheet1","index":0,"n_rows":11,"n_cols":19,"rows_kept":11,"cut":false,"hidden":false,"merged":[]}
["Wythoffのゲーム"]
[null,null,null,null,null,null,null,null,null,null,null,null,null,null,"ルール"]
[null,null,null,1,2,3,4,5,6,7,8,null,null,null,"左方向、下方向、左斜め下方向のいずれかの方向に"]
[null,null,1,{"$f":"IF(計算!D4=1,\"●\",\"\")","v":""},{"$f":"IF(計算!E4=1,\"●\",\"\")","v":""},{"$f":"IF(計算!F4=1,\"●\",\"\")","v":""},{"$f":"IF(計算!G4=1,\"●\",\"\")","v":""},{"$f":"IF(計算!H4=1,\"●\",\"\")","v":""},{"$f":"IF(計算!I4=1,\"●\",\"\")","v":""},{"$f":"IF(計算!J4=1,\"●\",\"\")","v":"●"},{"$f":"IF(計算!K4=1,\"●\",\"\")","v":""},null,null,null,"好きなだけ動かすことができます。"]
[null,null,2,{"$f":"IF(計算!D5=1,\"●\",\"\")","v":""},{"$f":"IF(計算!E5=1,\"●\",\"\")","v":""},{"$f":"IF(計算!F5=1,\"●\",\"\")","v":""},{"$f":"IF(計算!G5=1,\"●\",\"\")","v":""},{"$f":"IF(計算!H5=1,\"●\",\"\")","v":""},{"$f":"IF(計算!I5=1,\"●\",\"\")","v":""},{"$f":"IF(計算!J5=1,\"●\",\"\")","v":""},{"$f":"IF(計算!K5=1,\"●\",\"\")","v":""},null,null,null,"左下の正方形（黄色）の部分に最後に動かせた人が勝ちです。"]
[null,null,3,{"$f":"IF(計算!D6=1,\"●\",\"\")","v":""},{"$f":"IF(計算!E6=1,\"●\",\"\")","v":""},{"$f":"IF(計算!F6=1,\"●\",\"\")","v":""},{"$f":"IF(計算!G6=1,\"●\",\"\")","v":""},{"$f":"IF(計算!H6=1,\"●\",\"\")","v":""},{"$f":"IF(計算!I6=1,\"●\",\"\")","v":""},{"$f":"IF(計算!J6=1,\"●\",\"\")","v":""},{"$f":"IF(計算!K6=1,\"●\",\"\")","v":""},null,null,null,"開始位置を入力してください→",null,null,"縦","横"]
[null,null,4,{"$f":"IF(計算!D7=1,\"●\",\"\")","v":""},{"$f":"IF(計算!E7=1,\"●\",\"\")","v":""},{"$f":"IF(計算!F7=1,\"●\",\"\")","v":""},{"$f":"IF(計算!G7=1,\"●\",\"\")","v":""},{"$f":"IF(計算!H7=1,\"●\",\"\")","v":""},{"$f":"IF(計算!I7=1,\"●\",\"\")","v":""},{"$f":"IF(計算!J7=1,\"●\",\"\")","v":""},{"$f":"IF(計算!K7=1,\"●\",\"\")","v":""},null,null,null,null,null,null,1,7]
[null,null,5,{"$f":"IF(計算!D8=1,\"●\",\"\")","v":""},{"$f":"IF(計算!E8=1,\"●\",\"\")","v":""},{"$f":"IF(計算!F8=1,\"●\",\"\")","v":""},{"$f":"IF(計算!G8=1,\"●\",\"\")","v":""},{"$f":"IF(計算!H8=1,\"●\",\"\")","v":""},{"$f":"IF(計算!I8=1,\"●\",\"\")","v":""},{"$f":"IF(計算!J8=1,\"●\",\"\")","v":""},{"$f":"IF(計算!K8=1,\"●\",\"\")","v":""}]
[null,null,6,{"$f":"IF(計算!D9=1,\"●\",\"\")","v":""},{"$f":"IF(計算!E9=1,\"●\",\"\")","v":""},{"$f":"IF(計算!F9=1,\"●\",\"\")","v":""},{"$f":"IF(計算!G9=1,\"●\",\"\")","v":""},{"$f":"IF(計算!H9=1,\"●\",\"\")","v":""},{"$f":"IF(計算!I9=1,\"●\",\"\")","v":""},{"$f":"IF(計算!J9=1,\"●\",\"\")","v":""},{"$f":"IF(計算!K9=1,\"●\",\"\")","v":""}]
[null,null,7,{"$f":"IF(計算!D10=1,\"●\",\"\")","v":""},{"$f":"IF(計算!E10=1,\"●\",\"\")","v":""},{"$f":"IF(計算!F10=1,\"●\",\"\")","v":""},{"$f":"IF(計算!G10=1,\"●\",\"\")","v":""},{"$f":"IF(計算!H10=1,\"●\",\"\")","v":""},{"$f":"IF(計算!I10=1,\"●\",\"\")","v":""},{"$f":"IF(計算!J10=1,\"●\",\"\")","v":""},{"$f":"IF(計算!K10=1,\"●\",\"\")","v":""}]
[null,null,8,{"$f":"IF(計算!D11=1,\"●\",\"\")","v":""},{"$f":"IF(計算!E11=1,\"●\",\"\")","v":""},{"$f":"IF(計算!F11=1,\"●\",\"\")","v":""},{"$f":"IF(計算!G11=1,\"●\",\"\")","v":""},{"$f":"IF(計算!H11=1,\"●\",\"\")","v":""},{"$f":"IF(計算!I11=1,\"●\",\"\")","v":""},{"$f":"IF(計算!J11=1,\"●\",\"\")","v":""},{"$f":"IF(計算!K11=1,\"●\",\"\")","v":""}]

{"sheet":"計算","index":1,"n_rows":68,"n_cols":33,"rows_kept":68,"cut":false,"hidden":true,"merged":[[2,24,2,25],[1,29,1,32]]}
["計算シート",null,null,null,null,null,null,null,null,null,null,null,null,null,null,null,null,null,null,null,null,null,null,null,25,26,27,28,29,30,31,32,33]
[null,null,null,null,null,null,null,null,null,null,null,null,null,null,null,null,null,null,null,null,null,null,null,null,null,null,null,null,null,"記録"]
[null,null,null,null,null,null,null,null,null,null,null,null,"和","行番号","積",null,null,null,null,null,null,null,null,null,"現在のセル位置",null,null,null,null,"回数","row","column","現在の回数に1"]
[null,null,null,null,null,null,null,null,null,1,null,null,{"$f":"SUM(D4:K4)","v":1},4,{"$f":"M4*N4","v":4},null,null,null,null,null,null,null,null,null,"row","column",null,null,null,1,1,7,1]
[null,null,null,null,null,null,null,null,null,null,null,null,{"$f":"SUM(D5:K5)","v":0},5,{"$f":"M5*N5","v":0},null,null,null,null,null,null,null,null,null,{"$f":"SUM(O4:O11)","v":4},{"$f":"SUM(D15:K15)","v":10},null,null,null,2]
[null,null,null,null,null,null,null,null,null,null,null,null,0,6,0,null,null,null,null,null,null,null,null,null,null,null,null,"範囲になければ1を返す",null,3]
[null,null,null,null,null,null,null,null,null,null,null,null,0,7,0,null,null,null,null,null,null,null,null,"左ボタン",{"$f":"Y5","v":4},{"$f":"Z5-1","v":9},"→",{"$f":"IF(Z7<4,1,0)","v":0},null,4]
[null,null,null,null,null,null,null,null,null,null,null,null,0,8,0,null,null,null,null,null,null,null,null,"下ボタン",{"$f":"Y5+1","v":5},{"$f":"Z5","v":10},"→",{"$f":"IF(Y8>11,1,0)","v":0},null,5]
[null,null,null,null,null,null,null,null,null,null,null,null,0,9,0,null,null,null,null,null,null,null,null,"左斜め下ボタン",{"$f":"Y5+1","v":5},{"$f":"Z5-1","v":9},"→",{"$f":"IF(OR(Y8>11,Z7<4),1,0)","v":0},null,6]
[null,null,null,null,null,null,null,null,null,null,null,null,0,10,0,null,null,null,null,null,null,null,null,null,null,null,null,null,null,7]
[null,null,null,null,null,null,null,null,null,null,null,null,0,11,0,null,null,null,null,null,null,null,null,null,null,null,null,null,null,8]
[null,null,null,null,null,null,null,null,null,null,null,null,null,null,null,null,null,null,null,null,null,null,null,null,null,null,null,null,null,9]
[null,null,"和",{"$f":"SUM(D4:D11)","v":0},{"$f":"SUM(E4:E11)","v":0},0,0,0,0,1,0,null,null,null,null,null,null,null,null,null,null,null,null,null,null,null,null,null,null,10]
[null,null,"列番号",4,5,6,7,8,9,10,11,null,null,null,null,null,null,null,null,null,null,null,null,null,null,null,null,null,null,11]
[null,null,"積",{"$f":"D13*D14","v":0},{"$f":"E13*E14","v":0},0,0,0,0,10,0,null,null,null,null,null,null,null,null,null,null,null,null,null,null,null,null,null,null,12]
[null,null,null,null,null,null,null,null,null,null,null,null,null,null,null,null,null,null,null,null,null,null,null,null,null,null,null,null,null,13]
[null,null,null,null,null,null,null,null,null,null,null,null,null,null,null,null,null,null,null,null,null,null,null,null,null,null,null,null,null,14]
[null,null,null,null,null,null,null,null,null,null,null,null,null,null,null,null,null,null,null,null,null,null,null,null,null,null,null,null,null,15]
[null,null,null,null,null,null,null,null,null,null,null,null,null,null,null,null,null,null,null,null,null,null,null,null,null,null,null,null,null,16]
[null,null,null,null,null,null,null,null,null,null,null,null,null,null,null,null,null,null,null,null,null,null,null,null,null,null,null,null,null,17]
[null,null,null,null,null,null,null,null,null,null,null,null,null,null,null,null,null,null,null,null,null,null,null,null,null,null,null,null,null,18]
[null,null,null,null,null,null,null,null,null,null,null,null,null,null,null,null,null,null,null,null,null,null,null,null,null,null,null,null,null,19]
[null,null,null,null,null,null,null,null,null,null,null,null,null,null,null,null,null,null,null,null,null,null,null,null,null,null,null,null,null,20]
[null,null,null,null,null,null,null,null,null,null,null,null,null,null,null,null,null,null,null,null,null,null,null,null,null,null,null,null,null,21]
[null,null,null,null,null,null,null,null,null,null,null,null,null,null,null,null,null,null,null,null,null,null,null,null,null,null,null,null,null,22]
[null,null,null,null,null,null,null,null,null,null,null,null,null,null,null,null,null,null,null,null,null,null,null,null,null,null,null,null,null,23]
[null,null,null,null,null,null,null,null,null,null,null,null,null,null,null,null,null,null,null,null,null,null,null,null,null,null,null,null,null,24]
[null,null,null,null,null,null,null,null,null,null,null,null,null,null,null,null,null,null,null,null,null,null,null,null,null,null,null,null,null,25]
[null,null,null,null,null,null,null,null,null,null,null,null,null,null,null,null,null,null,null,null,null,null,null,null,null,null,null,null,null,26]
[null,null,null,null,null,null,null,null,null,null,null,null,null,null,null,null,null,null,null,null,null,null,null,null,null,null,null,null,null,27]
[null,null,null,null,null,null,null,null,null,null,null,null,null,null,null,null,null,null,null,null,null,null,null,null,null,null,null,null,null,28]
[null,null,null,null,null,null,null,null,null,null,null,null,null,null,null,null,null,null,null,null,null,null,null,null,null,null,null,null,null,29]
[null,null,null,null,null,null,null,null,null,null,null,null,null,null,null,null,null,null,null,null,null,null,null,null,null,null,null,null,null,30]
[null,null,null,null,null,null,null,null,null,null,null,null,null,null,null,null,null,null,null,null,null,null,null,null,null,null,null,null,null,31]
[null,null,null,null,null,null,null,null,null,null,null,null,null,null,null,null,null,null,null,null,null,null,null,null,null,null,null,null,null,32]
[null,null,null,null,null,null,null,null,null,null,null,null,null,null,null,null,null,null,null,null,null,null,null,null,null,null,null,null,null,33]
[null,null,null,null,null,null,null,null,null,null,null,null,null,null,null,null,null,null,null,null,null,null,null,null,null,null,null,null,null,34]
[null,null,null,null,null,null,null,null,null,null,null,null,null,null,null,null,null,null,null,null,null,null,null,null,null,null,null,null,null,35]
[null,null,null,null,null,null,null,null,null,null,null,null,null,null,null,null,null,null,null,null,null,null,null,null,null,null,null,null,null,36]
[null,null,null,null,null,null,null,null,null,null,null,null,null,null,null,null,null,null,null,null,null,null,null,null,null,null,null,null,null,37]
[null,null,null,null,null,null,null,null,null,null,null,null,null,null,null,null,null,null,null,null,null,null,null,null,null,null,null,null,null,38]
[null,null,null,null,null,null,null,null,null,null,null,null,null,null,null,null,null,null,null,null,null,null,null,null,null,null,null,null,null,39]
[null,null,null,null,null,null,null,null,null,null,null,null,null,null,null,null,null,null,null,null,null,null,null,null,null,null,null,null,null,40]
[null,null,null,null,null,null,null,null,null,null,null,null,null,null,null,null,null,null,null,null,null,null,null,null,null,null,null,null,null,41]
[null,null,null,null,null,null,null,null,null,null,null,null,null,null,null,null,null,null,null,null,null,null,null,null,null,null,null,null,null,42]
[null,null,null,null,null,null,null,null,null,null,null,null,null,null,null,null,null,null,null,null,null,null,null,null,null,null,null,null,null,43]
[null,null,null,null,null,null,null,null,null,null,null,null,null,null,null,null,null,null,null,null,null,null,null,null,null,null,null,null,null,44]
[null,null,null,null,null,null,null,null,null,null,null,null,null,null,null,null,null,null,null,null,null,null,null,null,null,null,null,null,null,45]
[null,null,null,null,null,null,null,null,null,null,null,null,null,null,null,null,null,null,null,null,null,null,null,null,null,null,null,null,null,46]
[null,null,null,null,null,null,null,null,null,null,null,null,null,null,null,null,null,null,null,null,null,null,null,null,null,null,null,null,null,47]
[null,null,null,null,null,null,null,null,null,null,null,null,null,null,null,null,null,null,null,null,null,null,null,null,null,null,null,null,null,48]
[null,null,null,null,null,null,null,null,null,null,null,null,null,null,null,null,null,null,null,null,null,null,null,null,null,null,null,null,null,49]
[null,null,null,null,null,null,null,null,null,null,null,null,null,null,null,null,null,null,null,null,null,null,null,null,null,null,null,null,null,50]
[null,null,null,null,null,null,null,null,null,null,null,null,null,null,null,null,null,null,null,null,null,null,null,null,null,null,null,null,null,51]
[null,null,null,null,null,null,null,null,null,null,null,null,null,null,null,null,null,null,null,null,null,null,null,null,null,null,null,null,null,52]
[null,null,null,null,null,null,null,null,null,null,null,null,null,null,null,null,null,null,null,null,null,null,null,null,null,null,null,null,null,53]
[null,null,null,null,null,null,null,null,null,null,null,null,null,null,null,null,null,null,null,null,null,null,null,null,null,null,null,null,null,54]
[null,null,null,null,null,null,null,null,null,null,null,null,null,null,null,null,null,null,null,null,null,null,null,null,null,null,null,null,null,55]
[null,null,null,null,null,null,null,null,null,null,null,null,null,null,null,null,null,null,null,null,null,null,null,null,null,null,null,null,null,56]
[null,null,null,null,null,null,null,null,null,null,null,null,null,null,null,null,null,null,null,null,null,null,null,null,null,null,null,null,null,57]
[null,null,null,null,null,null,null,null,null,null,null,null,null,null,null,null,null,null,null,null,null,null,null,null,null,null,null,null,null,58]
[null,null,null,null,null,null,null,null,null,null,null,null,null,null,null,null,null,null,null,null,null,null,null,null,null,null,null,null,null,59]
[null,null,null,null,null,null,null,null,null,null,null,null,null,null,null,null,null,null,null,null,null,null,null,null,null,null,null,null,null,60]
[null,null,null,null,null,null,null,null,null,null,null,null,null,null,null,null,null,null,null,null,null,null,null,null,null,null,null,null,null,61]
[null,null,null,null,null,null,null,null,null,null,null,null,null,null,null,null,null,null,null,null,null,null,null,null,null,null,null,null,null,62]
[null,null,null,null,null,null,null,null,null,null,null,null,null,null,null,null,null,null,null,null,null,null,null,null,null,null,null,null,null,63]
[null,null,null,null,null,null,null,null,null,null,null,null,null,null,null,null,null,null,null,null,null,null,null,null,null,null,null,null,null,64]
[null,null,null,null,null,null,null,null,null,null,null,null,null,null,null,null,null,null,null,null,null,null,null,null,null,null,null,null,null,65]

{"sheet":"Sheet2","index":2,"n_rows":0,"n_cols":0,"rows_kept":0,"cut":false,"hidden":true,"merged":[]}

{"sheet":"Sheet3","index":3,"n_rows":0,"n_cols":0,"rows_kept":0,"cut":false,"hidden":true,"merged":[]}